bitfinex-derivatives/quotes_BNBF0:USTF0_20250507
["timestamp","ask_amount","ask_price","bid_price","bid_amount"]
[1746609793911,0.30323479,606.67,605.84,0.734]
[1746609794110,0.28708726,606.66,605.84,0.734]
[1746609794412,0.30323479,606.65,605.84,0.734]
[1746609795418,0.28708963,606.64,605.84,0.734]
[1746609795612,0.30323479,606.63,605.84,0.734]
[1746609798014,0.28708963,606.64,605.84,0.734]
[1746609798217,0.32966308,606.68,605.84,0.734]
[1746609798420,0.3032352,606.63,605.84,0.734]
[1746609798612,0.28708726,606.63,605.84,0.734]
[1746609798919,0.3032352,606.62,605.84,0.734]
[1746609801418,0.28710266,606.61,605.84,0.734]
[1746609801817,0.3032352,606.6,605.84,0.734]
[1746609804520,0.28710739,606.59,605.84,0.734]
[1746609804825,0.3032352,606.58,605.84,0.734]
[1746609807626,0.28710029,606.57,605.84,0.734]
[1746609808024,0.28710029,606.57,604.9,0.61]
[1746609808224,0.3032352,606.56,604.92,0.33062223]
[1746609808727,0.3032352,606.56,604.92,1.00562223]
[1746609809327,0.3032352,606.56,604.92,1.61762223]
[1746609809525,0.3032352,606.56,604.93,0.28721165]
[1746609809823,0.3032352,606.56,604.95,0.33060583]
[1746609810628,0.28721047,606.55,604.95,0.33060583]
[1746609810926,0.3032352,606.54,604.95,0.33060583]
[1746609811126,0.3032352,606.54,604.96,0.829]
[1746609811329,0.3032352,606.54,604.98,0.33058944]
[1746609813526,0.3032352,606.67,604.98,0.33058944]
[1746609813728,0.28720928,606.53,604.98,0.33058944]
[1746609813927,0.3032352,606.67,604.98,0.33058944]
[1746609814431,0.3032352,606.52,604.98,0.33058944]
[1746609814727,0.3032352,606.66,604.98,0.33058944]
[1746609815027,0.3032352,606.51,604.98,0.33058944]
[1746609815223,0.59042908,606.65,604.98,0.33058944]
[1746609815523,0.3032352,606.64,604.98,0.33058944]
[1746609816430,0.28719506,606.63,604.98,0.33058944]
[1746609816628,0.3032352,606.62,604.98,0.33058944]
[1746609819531,0.3032352,606.67,604.98,0.33058944]
[1746609819825,0.28719388,606.61,604.98,0.33058944]
[1746609820131,0.3032352,606.6,604.98,0.33058944]
[1746609821927,0.28719388,606.61,604.98,0.33058944]
[1746609822231,0.3032003,606.6,604.98,0.33058944]
[1746609822431,0.28718558,606.6,604.98,0.33058944]
[1746609822731,0.3032003,606.59,604.98,0.33058944]
[1746609825537,0.28719506,606.58,604.98,0.33058944]
[1746609825935,0.3032003,606.57,604.98,0.33058944]
[1746609826336,0.28719506,606.58,604.98,0.33058944]
[1746609827037,0.27613872,606.58,604.98,0.33058944]
[1746609828336,0.32966308,606.68,604.98,0.33058944]
[1746609828544,0.28717136,606.57,604.98,0.33058944]
[1746609828839,0.32966308,606.68,604.98,0.33058944]
[1746609830140,0.28705174,606.67,604.98,0.33058944]
[1746609830941,0.28705174,606.67,604.99,0.889]
[1746609831243,0.32966308,606.68,604.99,0.889]
[1746609831443,0.32966308,606.68,605.01,0.33057304]
[1746609831643,0.28716899,606.66,605.01,0.33057304]
[1746609834044,0.28716899,606.66,605.02,0.802]
[1746609834247,0.32966308,606.68,605.04,0.33055665]
[1746609834646,0.28703872,606.67,605.04,0.33055665]
[1746609837446,0.3031754,606.66,605.04,0.33055665]
[1746609840647,0.28716544,606.65,605.04,0.33055665]
[1746609841048,0.30318081,606.64,605.04,0.33055665]
[1746609843551,0.28716662,606.63,605.04,0.33055665]
[1746609843853,0.30318081,606.62,605.04,0.33055665]
[1746609844254,0.28716662,606.63,605.04,0.33055665]
[1746609844953,0.30317332,606.62,605.04,0.33055665]
[1746609846349,0.32966308,606.68,605.04,1.03455665]
[1746609846655,0.28716307,606.61,605.04,1.03455665]
[1746609852561,0.32966308,606.68,605.04,1.03455665]
[1746609852860,0.28715596,606.6,605.04,1.03455665]
[1746609853060,0.32966308,606.68,605.04,1.03455665]
[1746609853961,0.32966308,606.68,605.04,1.93455665]
[1746609854363,0.28706121,606.67,605.04,1.93455665]
[1746609854562,0.28706121,606.67,605.04,2.78755665]
[1746609855157,0.32966308,606.68,605.04,2.78755665]
[1746609855666,0.28705884,606.67,605.04,2.78755665]
[1746609855967,0.30317346,606.66,605.04,2.78755665]
[1746609857970,0.28705884,606.67,605.04,2.78755665]
[1746609858171,0.32966308,606.68,605.04,2.78755665]
[1746609858474,0.28715596,606.66,605.04,2.78755665]
[1746609861276,0.32966308,606.68,605.04,2.78755665]
[1746609861775,0.28715596,606.65,605.04,2.78755665]
[1746609863472,0.28715596,606.65,605.04,3.57455665]
[1746609864176,0.32966308,606.68,605.04,3.57455665]
[1746609864677,0.28704345,606.67,605.04,3.57455665]
[1746609867279,0.32966308,606.68,605.04,3.57455665]
[1746609867683,0.28716307,606.66,605.04,3.57455665]
[1746609869882,0.30318735,606.65,605.04,3.57455665]
[1746609870383,0.30318735,606.67,605.04,3.57455665]
[1746609870583,0.28716544,606.64,605.04,3.57455665]
[1746609870986,0.30318735,606.63,605.04,3.57455665]
[1746609873485,0.28716781,606.62,605.04,3.57455665]
[1746609873786,0.30318735,606.61,605.04,3.57455665]
[1746609874687,0.28716781,606.62,605.04,3.57455665]
[1746609876385,0.32966308,606.68,605.04,3.57455665]
[1746609876585,0.30318654,606.67,605.04,3.57455665]
[1746609876880,0.28716307,606.61,605.04,3.57455665]
[1746609877887,0.30318666,606.6,605.04,3.57455665]
[1746609878587,0.28716307,606.61,605.04,3.57455665]
[1746609879285,0.30318637,606.6,605.04,3.57455665]
[1746609879486,0.59034944,606.6,605.04,3.57455665]
[1746609879687,0.28716307,606.6,605.04,3.57455665]
[1746609882292,0.32966308,606.68,605.04,3.57455665]
[1746609882792,0.30318489,606.67,605.04,3.57455665]
[1746609884092,0.28716307,606.66,605.04,3.57455665]
[1746609884289,0.30318489,606.65,605.04,3.57455665]
[1746609885794,0.28716307,606.64,605.04,3.57455665]
[1746609886294,0.30318489,606.63,605.04,3.57455665]
[1746609888090,0.28716307,606.64,605.04,3.57455665]
[1746609888294,0.32966308,606.68,605.04,3.57455665]
[1746609888491,0.30318666,606.63,605.04,3.57455665]
[1746609888695,0.59029524,606.67,605.04,3.57455665]
[1746609889095,0.30318666,606.66,605.04,3.57455665]
[1746609891698,0.28716425,606.65,605.04,3.57455665]
[1746609892096,0.30318666,606.64,605.04,3.57455665]
[1746609894695,0.28716307,606.63,605.04,3.57455665]
[1746609895402,0.30318666,606.62,605.04,3.57455665]
[1746609897605,0.30318666,606.67,605.04,3.57455665]
[1746609897806,0.28716307,606.61,605.04,3.57455665]
[1746609898107,0.30318666,606.6,605.04,3.57455665]
[1746609899104,0.30318666,606.6,605.05,1.0471478]
[1746609899308,0.28716307,606.61,605.05,1.0471478]
[1746609899507,0.28716307,606.61,605.07,0.33054026]
[1746609900009,0.30323319,606.6,605.07,0.33054026]
[1746609900506,0.28719151,606.59,605.07,0.33054026]
[1746609901812,0.28719151,606.59,605.08,0.809]
[1746609902109,0.28719151,606.59,605.1,0.33052388]
[1746609902612,0.28719151,606.59,605.11,0.634]
[1746609902909,0.28719151,606.59,605.13,0.33050749]
[1746609903210,0.32966308,606.68,605.13,0.33050749]
[1746609903608,0.2871761,606.58,605.13,0.33050749]
[1746609903910,0.32966308,606.68,605.13,0.33050749]
[1746609904210,0.30322246,606.67,605.13,0.33050749]
[1746609905114,0.2871761,606.66,605.13,0.33050749]
[1746609905309,0.30322246,606.65,605.13,0.33050749]
[1746609906410,0.30322246,606.67,605.13,0.33050749]
[1746609906612,0.28716425,606.64,605.13,0.33050749]
[1746609906812,0.30322246,606.63,605.13,0.33050749]
[1746609909714,0.28716425,606.64,605.13,0.33050749]
[1746609912315,0.32966308,606.68,605.13,0.33050749]
[1746609912514,0.3031816,606.67,605.13,0.33050749]
[1746609912817,0.2871453,606.63,605.13,0.33050749]
[1746609915218,0.32966308,606.68,605.13,0.33050749]
[1746609915518,0.30319245,606.67,605.13,0.33050749]
[1746609915716,0.59024656,606.67,605.13,0.33050749]
[1746609915916,0.30319245,606.66,605.13,0.33050749]
[1746609917421,0.30319245,606.66,605.14,0.752]
[1746609917715,0.30319245,606.66,605.16,0.3304911]
[1746609918521,0.30319245,606.67,605.16,0.3304911]
[1746609918722,0.59033419,606.65,605.16,0.3304911]
[1746609919015,0.30319245,606.64,605.16,0.3304911]
[1746609921721,0.59033775,606.63,605.16,0.3304911]
[1746609921921,0.30319245,606.62,605.16,0.3304911]
[1746609922320,0.30319245,606.62,605.15,0.2871453]
[1746609923625,0.30319245,606.62,605.15,0.9821453]
[1746609925023,0.2871453,606.63,605.15,0.9821453]
[1746609925220,0.30318615,606.62,605.15,0.9821453]
[1746609927226,0.30318615,606.62,605.15,0.695]
[1746609927626,0.28714648,606.61,605.15,0.98214648]
[1746609927920,0.30318615,606.6,605.15,0.98214648]
[1746609928126,0.28714648,606.61,605.15,0.98214648]
[1746609928326,0.30317987,606.59,605.15,0.98214648]
[1746609928526,0.30317987,606.6,605.15,0.98214648]
[1746609929028,0.28714648,606.61,605.15,0.98214648]
[1746609929327,0.30317836,606.6,605.15,0.98214648]
[1746609930527,0.30317836,606.6,605.15,0.695]
[1746609930726,0.28714885,606.59,605.15,0.98214885]
[1746609931128,0.30317836,606.58,605.15,1.85714885]
[1746609933329,0.30317836,606.58,605.15,1.57]
[1746609933928,0.28715122,606.57,605.15,1.85715122]
[1746609934129,0.59032958,606.57,605.15,1.85715122]
[1746609934330,0.28715122,606.57,605.15,1.85715122]
[1746609934530,0.30318245,606.56,605.15,1.85715122]
[1746609936230,0.30318245,606.56,605.15,1.57]
[1746609936626,0.30318245,606.56,605.15,1.85708844]
[1746609936824,0.28708844,606.57,605.15,1.85708844]
[1746609937027,0.30318245,606.55,605.15,1.85708844]
[1746609937329,0.30318245,606.56,605.15,1.85708844]
[1746609937531,0.30318245,606.56,605.15,2.45608844]
[1746609939228,0.30318245,606.56,605.15,2.169]
[1746609939533,0.30318245,607.06,605.15,2.169]
[1746609939733,0.28709437,606.57,605.15,2.45609437]
[1746609940030,0.30318245,607.05,605.15,2.45609437]
[1746609940334,1.25655369,607.01,605.15,2.45609437]
[1746609940535,0.30318245,607.0,605.15,2.45609437]
[1746609940934,0.30318245,606.99,605.15,2.45609437]
[1746609941129,0.30318245,606.98,605.15,2.45609437]
[1746609941539,0.30318245,606.97,605.15,2.45609437]
[1746609941933,0.30318245,606.96,605.15,2.45609437]
[1746609942238,0.30318245,606.96,605.15,2.169]
[1746609942534,1.25655369,606.94,605.15,2.169]
[1746609942833,1.25655369,606.94,605.15,2.45610384]
[1746609943035,0.30318245,606.93,605.15,2.45610384]
[1746609943337,0.30318245,606.92,605.15,2.45610384]
[1746609943637,0.30318245,606.91,605.15,2.45610384]
[1746609943833,0.30318245,606.91,605.15,3.29610384]
[1746609944033,0.30318245,606.9,605.15,3.29610384]
[1746609944237,0.30318245,606.89,605.15,3.29610384]
[1746609944436,0.63273689,606.88,605.17,0.33048564]
[1746609944637,0.32955987,606.87,605.17,0.33048564]
[1746609945133,0.63274232,606.87,605.17,0.33048564]
[1746609945337,0.30318245,606.86,605.17,0.33048564]
[1746609945536,0.32957073,606.85,605.17,0.33048564]
[1746609945737,0.30318245,606.84,605.17,0.33048564]
[1746609946133,0.30318245,606.83,605.17,0.33048564]
[1746609946334,0.63276947,606.82,605.17,0.33048564]
[1746609946540,0.32959245,606.81,605.17,0.33048564]
[1746609946738,0.6327749,606.81,605.17,0.33048564]
[1746609947140,0.30318245,606.8,605.17,0.33048564]
[1746609947439,0.32960332,606.79,605.17,0.33048564]
[1746609947740,0.30318245,606.78,605.17,0.33048564]
[1746609947939,0.32961418,606.77,605.17,1.03548564]
[1746609948634,0.59033249,606.76,605.17,1.03548564]
[1746609948838,0.30318245,606.75,605.17,1.03548564]
[1746609951444,0.30318245,606.76,605.17,1.03548564]
[1746609951946,0.28715122,606.74,605.17,1.03548564]
[1746609952341,0.30318245,606.73,605.17,1.03548564]
[1746609954445,0.30318245,606.73,605.17,1.59748564]
[1746609954845,0.28715241,606.72,605.17,1.59748564]
[1746609955045,0.59033486,606.72,605.17,1.59748564]
[1746609955246,0.30318245,606.71,605.17,1.59748564]
[1746609957649,0.28715241,606.7,605.17,1.59748564]
[1746609958044,0.30318245,606.69,605.17,1.59748564]
[1746609959350,0.28715241,606.7,605.17,1.59748564]
[1746609959644,0.30319736,606.69,605.17,1.59748564]
[1746609959950,0.28715241,606.7,605.17,1.59748564]
[1746609960250,0.30319765,606.69,605.17,1.59748564]
[1746609960751,0.28715951,606.68,605.17,1.59748564]
[1746609961151,0.30319765,606.67,605.17,1.59748564]
[1746609961755,0.28715951,606.68,605.17,1.59748564]
[1746609961951,0.30319793,606.66,605.17,1.59748564]
[1746609962953,0.30319793,606.67,605.17,1.59748564]
[1746609963152,0.30319793,606.65,605.17,1.59748564]
[1746609963346,0.30319793,606.67,605.17,1.59748564]
[1746609963650,0.28716188,606.64,605.17,1.59748564]
[1746609963953,0.30319793,606.63,605.17,1.59748564]
[1746609966657,0.28716662,606.62,605.17,1.59748564]
[1746609967257,0.30319793,606.61,605.17,2.42448564]
[1746609968056,0.28716662,606.62,605.17,2.42448564]
[1746609968355,0.30319754,606.61,605.17,2.42448564]
[1746609969559,0.30319754,606.75,605.17,2.42448564]
[1746609969860,0.28715241,606.6,605.17,2.42448564]
[1746609970155,0.30319754,606.59,605.17,2.42448564]
[1746609970359,0.30319754,606.75,605.17,2.42448564]
[1746609970856,0.32961961,606.76,605.17,2.42448564]
[1746609971160,0.30319754,606.74,605.17,2.42448564]
[1746609971555,0.5903073,606.75,605.17,2.42448564]
[1746609971859,0.30319754,606.74,605.17,2.42448564]
[1746609972855,0.28715241,606.73,605.17,2.42448564]
[1746609973062,0.30319754,606.72,605.17,2.42448564]
[1746609975660,0.28715596,606.71,605.17,2.42448564]
[1746609975960,0.30319754,606.7,605.17,2.42448564]
[1746609978562,0.28715833,606.69,605.17,2.42448564]
[1746609979062,0.30319754,606.68,605.17,2.42448564]
[1746609980663,0.28715833,606.69,605.17,2.42448564]
[1746609980858,0.30320215,606.68,605.17,2.42448564]
[1746609981456,0.30320215,606.75,605.17,2.42448564]
[1746609981756,0.2871607,606.67,605.17,2.42448564]
[1746609981955,0.30320215,606.75,605.17,2.42448564]
[1746609982158,0.30320215,606.66,605.17,2.42448564]
[1746609982562,0.30320215,606.75,605.17,2.42448564]
[1746609983057,0.30320215,606.75,605.17,3.12048564]
[1746609983263,0.28715241,606.74,605.17,3.12048564]
[1746609983763,0.30320187,606.73,605.17,3.12048564]
[1746609984558,0.30320187,606.75,605.17,3.12048564]
[1746609984762,0.28715241,606.72,605.17,3.12048564]
[1746609985563,0.30320187,606.71,605.17,3.12048564]
[1746609987358,0.30320187,606.75,605.17,3.12048564]
[1746609987862,0.28715241,606.74,605.17,3.12048564]
[1746609988263,0.30320187,606.73,605.17,3.12048564]
[1746609988659,0.28715241,606.74,605.17,3.12048564]
[1746609988858,0.30320244,606.73,605.17,3.12048564]
[1746609990864,0.30320244,606.75,605.17,3.12048564]
[1746609992264,0.28715241,606.74,605.17,3.12048564]
[1746609992464,0.30320244,606.73,605.17,3.12048564]
[1746609993264,0.32961961,606.76,605.17,3.12048564]
[1746609993664,0.28715477,606.72,605.17,3.12048564]
[1746609993864,0.30320206,606.71,605.17,3.12048564]
[1746609996764,0.28715714,606.7,605.17,3.12048564]
[1746609997166,0.30320206,606.69,605.17,3.12048564]
[1746609999768,0.28715241,606.68,605.17,3.12048564]
[1746609999968,0.30320206,606.67,605.17,3.12048564]
[1746610002575,0.30320206,606.75,605.17,3.12048564]
[1746610002776,0.28715241,606.66,605.17,3.12048564]
[1746610002978,0.30320206,606.75,605.17,3.12048564]
[1746610003176,0.30320206,606.65,605.17,3.12048564]
[1746610003377,0.30320206,606.75,605.17,3.12048564]
[1746610003776,0.28715241,606.74,605.17,3.12048564]
[1746610003978,0.30320206,606.73,605.17,3.12048564]
[1746610005581,0.30320206,606.75,605.17,3.12048564]
[1746610005775,0.28715241,606.72,605.17,3.12048564]
[1746610006678,0.30320206,606.71,605.17,3.12048564]
[1746610008476,0.28715714,606.7,605.17,3.12048564]
[1746610008780,0.30320206,606.69,605.17,3.12048564]
[1746610014487,0.30320206,606.75,605.17,3.12048564]
[1746610014788,0.28715241,606.68,605.17,3.12048564]
[1746610015188,0.30320206,606.67,605.17,3.12048564]
[1746610017586,0.28716188,606.66,605.17,3.12048564]
[1746610017781,0.30320206,606.65,605.17,3.12048564]
[1746610020491,0.30320206,606.75,605.17,3.12048564]
[1746610020691,0.28715241,606.64,605.17,3.12048564]
[1746610020890,0.30320206,606.63,605.17,3.12048564]
[1746610021287,0.30320206,606.75,605.17,3.12048564]
[1746610021485,0.32961961,606.76,605.17,3.12048564]
[1746610021891,0.30320475,606.75,605.17,3.12048564]
[1746610022191,0.59029793,606.75,605.17,3.12048564]
[1746610022490,0.30320475,606.74,605.17,3.12048564]
[1746610023692,0.28715241,606.73,605.17,3.12048564]
[1746610023991,0.30320475,606.72,605.17,3.12048564]
[1746610026293,0.32961961,606.76,605.17,3.12048564]
[1746610026689,0.28715596,606.71,605.17,3.12048564]
[1746610026994,0.30320402,606.7,605.17,3.12048564]
[1746610028198,0.28715596,606.71,605.17,3.12048564]
[1746610028397,0.30320251,606.7,605.17,3.12048564]
[1746610029595,0.30320251,606.75,605.17,3.12048564]
[1746610029892,0.28715833,606.69,605.17,3.12048564]
[1746610030089,0.30320251,606.68,605.17,3.12048564]
[1746610036298,0.63286559,606.68,605.17,3.12048564]
[1746610036498,0.30320251,606.67,605.17,3.12048564]
[1746610038699,0.28718084,606.66,605.17,3.12048564]
[1746610039000,0.30320251,606.65,605.17,3.12048564]
[1746610041799,0.28718084,606.64,605.17,3.12048564]
[1746610042106,0.30320251,606.63,605.17,3.12048564]
[1746610044610,0.63289276,606.63,605.17,3.12048564]
[1746610044803,0.61690023,606.62,605.17,3.12048564]
[1746610045005,0.32970112,606.61,605.17,3.12048564]
[1746610045509,0.30320251,606.6,605.17,3.12048564]
[1746610046408,0.63290907,606.6,605.17,3.12048564]
[1746610046809,0.30320251,606.59,605.17,3.12048564]
[1746610047710,0.28720928,606.58,605.17,3.12048564]
[1746610047911,0.30320251,606.57,605.17,3.12048564]
[1746610050515,0.30320251,606.59,605.17,3.12048564]
[1746610050713,0.28721165,606.56,605.17,3.12048564]
[1746610051012,0.30320251,606.55,605.17,3.12048564]
[1746610053617,0.28721402,606.54,605.17,3.12048564]
[1746610053816,0.30320251,606.53,605.17,3.12048564]
[1746610056718,0.28721639,606.52,605.17,3.12048564]
[1746610057218,0.30320251,606.51,605.17,3.12048564]
[1746610058820,0.28721639,606.52,605.17,3.12048564]
[1746610059122,0.30330476,606.5,605.17,3.12048564]
[1746610059422,0.30330476,606.51,605.17,3.12048564]
[1746610059721,0.28721876,606.49,605.17,3.12048564]
[1746610060221,0.30330476,606.48,605.17,3.12048564]
[1746610062727,0.28720928,606.47,605.17,3.12048564]
[1746610063026,0.30330476,606.46,605.17,3.12048564]
[1746610065228,0.28720928,606.47,605.17,3.12048564]
[1746610065425,0.32970656,606.6,605.17,3.12048564]
[1746610065729,0.28720928,606.46,605.17,3.12048564]
[1746610066029,0.30330752,606.59,605.17,3.12048564]
[1746610066226,0.30330752,606.45,605.17,3.12048564]
[1746610066430,0.30330752,606.58,605.17,3.12048564]
[1746610066831,0.30330752,606.59,605.17,3.12048564]
[1746610067032,0.32971743,606.58,605.17,3.12048564]
[1746610067333,0.30330752,606.57,605.17,3.12048564]
[1746610068635,0.28721639,606.56,605.17,3.12048564]
[1746610069034,0.30330752,606.55,605.17,3.12048564]
[1746610074640,0.28721876,606.54,605.17,3.12048564]
[1746610074949,0.30330752,606.53,605.17,3.12048564]
[1746610077637,0.30330752,606.57,605.17,3.12048564]
[1746610077839,0.28722351,606.52,605.17,3.12048564]
[1746610078542,0.30330752,606.51,605.17,3.12048564]
[1746610080643,0.28722588,606.5,605.17,3.12048564]
[1746610081344,0.30330752,606.49,605.17,3.12048564]
[1746610083547,0.32971743,606.58,605.17,3.12048564]
[1746610083747,0.28722825,606.48,605.17,3.12048564]
[1746610083948,0.30331363,606.57,605.17,3.12048564]
[1746610084148,0.63303649,606.57,605.17,3.12048564]
[1746610084344,0.28721876,606.47,605.17,3.12048564]
[1746610084551,0.30331363,606.56,605.17,3.12048564]
[1746610084749,0.28722114,606.46,605.17,3.12048564]
[1746610085147,0.30331363,606.45,605.17,3.12048564]
[1746610085351,0.59053477,606.45,605.17,3.12048564]
[1746610085650,0.30331363,606.44,605.17,3.12048564]
[1746610086751,0.30331363,606.56,605.17,3.12048564]
[1746610086951,0.28721995,606.43,605.17,3.12048564]
[1746610087152,0.30331363,606.56,605.17,3.12048564]
[1746610088254,0.32972286,606.57,605.17,3.12048564]
[1746610088457,0.28721995,606.55,605.17,3.12048564]
[1746610089355,0.32972286,606.57,605.17,3.12048564]
[1746610089656,0.28719862,606.54,605.17,3.12048564]
[1746610092358,0.32972286,606.57,605.17,3.12048564]
[1746610092858,0.28706831,606.56,605.17,3.12048564]
[1746610095360,0.32972286,606.57,605.17,3.12048564]
[1746610095762,0.28705648,606.56,605.17,3.12048564]
[1746610098363,0.32972286,606.57,605.17,3.12048564]
[1746610098560,0.30326345,606.56,605.17,3.12048564]
[1746610098758,0.59031401,606.56,605.17,3.12048564]
[1746610099262,0.30326345,606.55,605.17,3.12048564]
[1746610101662,0.28719269,606.54,605.17,3.12048564]
[1746610102160,0.30326345,606.53,605.17,3.12048564]
[1746610102661,0.28719269,606.54,605.17,3.12048564]
[1746610102965,0.30326345,606.53,605.17,3.12048564]
[1746610104768,0.28719151,606.52,605.17,3.12048564]
[1746610105267,0.30326345,606.51,605.17,3.12048564]
[1746610107670,0.28719743,606.5,605.17,3.12048564]
[1746610107969,0.30326345,606.49,605.17,3.12048564]
[1746610110474,0.30326345,606.56,605.17,3.12048564]
[1746610110673,0.2871998,606.48,605.17,3.12048564]
[1746610110871,0.30326345,606.56,605.17,3.12048564]
[1746610111374,0.30326345,606.47,605.17,3.12048564]
[1746610111775,0.30326345,606.55,605.17,3.12048564]
[1746610112074,0.28719151,606.46,605.17,3.12048564]
[1746610112472,0.30326345,606.56,605.17,3.12048564]
[1746610112775,0.28719388,606.45,605.17,3.12048564]
[1746610112970,0.32972286,606.57,605.17,3.12048564]
[1746610113175,0.2871998,606.44,605.17,3.12048564]
[1746610113574,0.32972286,606.57,605.17,3.12048564]
[1746610114777,0.28714767,606.56,605.17,3.12048564]
[1746610119480,0.32972286,606.57,605.17,3.12048564]
[1746610119780,0.28719862,606.55,605.17,3.12048564]
[1746610122282,0.32972286,606.57,605.17,3.12048564]
[1746610122785,0.28703635,606.56,605.17,3.12048564]
[1746610125283,0.32972286,606.57,605.17,3.12048564]
[1746610125585,0.28719862,606.55,605.17,3.12048564]
[1746610128385,0.32972286,606.57,605.17,3.12048564]
[1746610128677,0.28719862,606.54,605.17,3.12048564]
[1746610128879,0.3032726,606.53,605.17,3.12048564]
[1746610131185,0.28719862,606.54,605.17,3.12048564]
[1746610131380,0.32972286,606.57,605.17,3.12048564]
[1746610131678,0.28719862,606.53,605.17,3.12048564]
[1746610134388,0.32972286,606.57,605.17,3.12048564]
[1746610134880,0.59037618,606.56,605.17,3.12048564]
[1746610135287,0.30327234,606.55,605.17,3.12048564]
[1746610143494,0.30327234,606.56,605.17,3.12048564]
[1746610143797,0.28719862,606.54,605.17,3.12048564]
[1746610144397,0.30327191,606.53,605.17,3.12048564]
[1746610146793,0.28720217,606.52,605.17,3.12048564]
[1746610147298,0.30327191,606.51,605.17,3.12048564]
[1746610149897,0.28719862,606.5,605.17,3.12048564]
[1746610150199,0.30327191,606.49,605.17,3.12048564]
[1746610151899,0.28719862,606.5,605.17,3.12048564]
[1746610152097,0.303276,606.49,605.17,3.12048564]
[1746610152696,0.28720691,606.48,605.17,3.12048564]
[1746610153301,0.303276,606.47,605.17,3.12048564]
[1746610155603,0.28720928,606.46,605.17,3.12048564]
[1746610156203,0.303276,606.45,605.17,3.12048564]
[1746610158703,0.28721165,606.44,605.17,3.12048564]
[1746610158904,0.303276,606.43,605.17,3.12048564]
[1746610159106,0.28721165,606.44,605.17,3.12048564]
[1746610161407,0.32972286,606.57,605.17,3.12048564]
[1746610161600,0.3032748,606.56,605.17,3.12048564]
[1746610161806,0.28719862,606.43,605.17,3.12048564]
[1746610162006,0.3032748,606.56,605.17,3.12048564]
[1746610162206,0.32972286,606.57,605.17,3.12048564]
[1746610162806,0.30327508,606.56,605.17,3.12048564]
[1746610163206,0.28719862,606.55,605.17,3.12048564]
[1746610163807,0.30327508,606.54,605.17,3.12048564]
[1746610164803,0.28719862,606.53,605.17,3.12048564]
[1746610165607,0.30327508,606.52,605.17,3.12048564]
[1746610167810,0.28719862,606.51,605.17,3.12048564]
[1746610168610,0.30327508,606.5,605.17,3.12048564]
[1746610169607,0.28719862,606.51,605.17,3.12048564]
[1746610169912,0.30327514,606.5,605.17,3.12048564]
[1746610173819,0.28720573,606.49,605.17,3.12048564]
[1746610176418,0.32972286,606.57,605.17,3.12048564]
[1746610176617,0.30327517,606.56,605.17,3.12048564]
[1746610176822,0.28719862,606.48,605.17,3.12048564]
[1746610177025,0.30327517,606.56,605.17,3.12048564]
[1746610177323,0.32972286,606.57,605.17,3.12048564]
[1746610177626,0.30327625,606.56,605.17,3.12048564]
[1746610178326,0.28719862,606.55,605.17,3.12048564]
[1746610178626,0.30327625,606.54,605.17,3.12048564]
[1746610179628,0.28720099,606.53,605.17,3.12048564]
[1746610179827,0.30327625,606.52,605.17,3.12048564]
[1746610182631,0.30327625,606.56,605.17,3.12048564]
[1746610182833,0.28719625,606.51,605.17,3.12048564]
[1746610183234,0.30327625,606.5,605.17,3.12048564]
[1746610185829,0.28719862,606.49,605.17,3.12048564]
[1746610186133,0.30327625,606.48,605.17,3.12048564]
[1746610188735,0.30327625,606.56,605.17,3.12048564]
[1746610188935,0.2871844,606.47,605.17,3.12048564]
[1746610189134,0.30327625,606.56,605.17,3.12048564]
[1746610189936,0.28717966,606.55,605.17,3.12048564]
[1746610191535,0.32972286,606.57,605.17,3.12048564]
[1746610191937,0.28717492,606.54,605.17,3.12048564]
[1746610194536,0.32972286,606.57,605.17,3.12048564]
[1746610194736,0.28717373,606.53,605.17,3.12048564]
[1746610197437,0.32972286,606.57,605.17,3.12048564]
[1746610197837,0.28717492,606.52,605.17,3.12048564]
[1746610200434,0.32972286,606.57,605.17,3.12048564]
[1746610200940,0.28717492,606.51,605.17,3.12048564]
[1746610201740,0.30321678,606.5,605.17,3.12048564]
[1746610206446,0.32972286,606.57,605.17,3.12048564]
[1746610206840,0.28710976,606.56,605.17,3.12048564]
[1746610209346,0.32972286,606.57,605.17,3.12048564]
[1746610209846,0.28701741,606.56,605.17,3.12048564]
[1746610212445,0.32972286,606.57,605.17,3.12048564]
[1746610212850,0.28702096,606.56,605.17,3.12048564]
[1746610215457,0.32972286,606.57,605.17,3.12048564]
[1746610215651,0.2871607,606.55,605.17,3.12048564]
[1746610218356,0.32972286,606.57,605.17,3.12048564]
[1746610218859,0.28706713,606.56,605.17,3.12048564]
[1746610220556,0.30320865,606.55,605.17,3.12048564]
[1746610221556,0.30320865,606.56,605.17,3.12048564]
[1746610221762,0.28716188,606.54,605.17,3.12048564]
[1746610224365,0.32972286,606.57,605.17,3.12048564]
[1746610224660,0.28715359,606.53,605.17,3.12048564]
[1746610226461,0.30318648,606.52,605.17,3.12048564]
[1746610227565,0.32972286,606.57,605.17,3.12048564]
[1746610227762,0.28715833,606.53,605.17,3.12048564]
[1746610228165,0.30318666,606.52,605.17,3.12048564]
[1746610228365,0.28715833,606.53,605.17,3.12048564]